bitfinex/quotes_BTCUSD_20230831
["timestamp","ask_amount","ask_price","bid_price","bid_amount"]
[1693445281679,0.47014383,27256.0,27255.0,0.74681]
[1693445282054,0.47014383,27256.0,27255.0,1.48062]
[1693445282522,0.46914383,27256.0,27255.0,1.46762]
[1693445282725,0.49714383,27256.0,27255.0,1.46962]
[1693445283011,0.52414383,27256.0,27255.0,1.47262]
[1693445283775,0.52414383,27256.0,27255.0,0.005]
[1693445284008,0.52414383,27256.0,27255.0,0.003]
[1693445284009,0.49614383,27256.0,27255.0,0.003]
[1693445284206,0.182788,27256.0,27255.0,0.001]
[1693445284470,0.477685,27256.0,27255.0,0.002]
[1693445285033,0.477685,27256.0,27255.0,2.20343]
[1693445287168,0.657685,27256.0,27255.0,2.20343]
[1693445292069,0.657685,27256.0,27255.0,2.20343]
[1693445293251,0.657685,27256.0,27255.0,2.23646877]
[1693445293849,0.384788,27256.0,27255.0,2.23646877]
[1693445303461,0.2379,27256.0,27255.0,2.60254788]
[1693445309050,0.2379,27256.0,27255.0,2.67754788]
[1693445311927,0.2379,27256.0,27255.0,3.83926711]
[1693445312127,0.2379,27256.0,27255.0,4.31703985]
[1693445312390,0.2379,27256.0,27255.0,4.49328229]
[1693445312522,0.2379,27256.0,27255.0,4.36141685]
[1693445312727,0.2229,27256.0,27255.0,4.36041685]
[1693445312933,0.2379,27256.0,27255.0,4.36141685]
[1693445313131,0.2379,27256.0,27255.0,4.49329486]
[1693445313340,0.2009,27256.0,27255.0,4.49129486]
[1693445313543,0.2009,27256.0,27255.0,4.49129222]
[1693445313750,0.2229,27256.0,27255.0,4.49229203]
[1693445313997,0.2009,27256.0,27255.0,4.52090251]
[1693445314396,0.2029,27256.0,27255.0,4.54990251]
[1693445314839,0.2059,27256.0,27255.0,4.58690251]
[1693445314994,0.2059,27256.0,27255.0,4.45502733]
[1693445315319,0.2059,27256.0,27255.0,4.58687865]
[1693445316584,0.2059,27256.0,27255.0,4.41063621]
[1693445318547,0.2059,27256.0,27255.0,4.45502733]
[1693445319274,0.2059,27256.0,27255.0,4.58684036]
[1693445319807,0.2059,27256.0,27255.0,4.45502733]
[1693445320162,0.2059,27256.0,27255.0,4.58682893]
[1693445322219,0.2059,27256.0,27255.0,4.41058649]
[1693445331273,0.2059,27256.0,27255.0,4.58682893]
[1693445331452,0.2059,27256.0,27255.0,4.45502733]
[1693445336393,0.2059,27256.0,27255.0,4.67533038]
[1693445337476,0.2059,27256.0,27255.0,4.45502733]
[1693445340077,0.2059,27256.0,27255.0,4.67533038]
[1693445343217,0.2059,27256.0,27255.0,4.67483169]
[1693445343829,0.2059,27256.0,27255.0,4.49908794]
[1693445353256,0.2059,27256.0,27255.0,4.49863969]
[1693445355068,0.2059,27256.0,27255.0,4.27878489]
[1693445356442,0.1865,27257.0,27256.0,0.04]
[1693445356653,0.1865,27257.0,27256.0,3.63621866]
[1693445356654,0.0209,27257.0,27256.0,3.63621866]
[1693445357281,0.0209,27257.0,27256.0,3.41624464]
[1693445357662,0.0229,27257.0,27256.0,3.66026]
[1693445357827,0.0229,27257.0,27256.0,3.67626]
[1693445357828,0.0239,27257.0,27256.0,3.67626]
[1693445358271,0.0239,27257.0,27256.0,3.45624464]
[1693445363443,0.0239,27257.0,27256.0,3.67626891]
[1693445365161,0.0239,27257.0,27256.0,3.45624464]
[1693445368210,0.2039,27257.0,27256.0,3.45624464]
[1693445369657,0.0239,27257.0,27256.0,3.45624464]
[1693445374006,0.0239,27257.0,27256.0,3.235167]
[1693445374551,0.0239,27257.0,27256.0,3.67624611]
[1693445374834,0.0239,27257.0,27256.0,3.45624464]
[1693445379738,0.0339,27257.0,27256.0,3.45624464]
[1693445383177,0.0339,27257.0,27256.0,3.4892619]
[1693445387614,0.0339,27257.0,27256.0,3.26806451]
[1693445389798,0.0339,27257.0,27256.0,3.24806451]
[1693445389972,0.0339,27257.0,27256.0,3.26806451]
[1693445390428,0.0339,27257.0,27256.0,3.184114]
[1693445391606,0.0339,27257.0,27256.0,3.31606375]
[1693445392678,0.0339,27257.0,27256.0,3.35606375]
[1693445392889,0.0339,27257.0,27256.0,3.35605774]
[1693445393095,0.29656937,27257.0,27256.0,1.6285518]
[1693445393393,0.29656937,27257.0,27256.0,1.54058326]
[1693445393394,0.37156937,27257.0,27256.0,1.54058326]
[1693445400458,0.47156937,27257.0,27256.0,0.07301726]
[1693445401136,0.46956937,27257.0,27256.0,0.04901726]
[1693445401337,0.46956937,27257.0,27256.0,0.78280026]
[1693445401561,0.47056937,27257.0,27256.0,0.78280026]
[1693445401767,0.47056937,27257.0,27256.0,1.51658326]
[1693445401980,0.46956937,27257.0,27256.0,1.51658326]
[1693445402220,0.46856937,27257.0,27256.0,1.50058326]
[1693445402421,0.46956937,27257.0,27256.0,1.50058326]
[1693445402576,0.45856937,27257.0,27256.0,1.50058326]
[1693445402738,0.46956937,27257.0,27256.0,1.50058326]
[1693445403147,0.47856937,27257.0,27256.0,1.50058326]
[1693445403835,0.45856937,27257.0,27256.0,1.50058326]
[1693445404055,0.47856937,27257.0,27256.0,1.50058326]
[1693445405428,0.1409,27257.0,27256.0,2.23436626]
[1693445412689,0.0409,27257.0,27256.0,2.23436626]
[1693445419731,0.0409,27257.0,27256.0,3.51719691]
[1693445420003,0.0409,27257.0,27256.0,5.35254874]
[1693445420378,0.0409,27257.0,27256.0,5.42754874]
[1693445420585,0.0399,27257.0,27256.0,5.35254874]
[1693445420985,0.0409,27257.0,27256.0,5.35254874]
[1693445421805,0.0319,27257.0,27256.0,5.35254874]
[1693445422154,0.0319,27257.0,27256.0,5.36954874]
[1693445422155,0.0329,27257.0,27256.0,5.36954874]
[1693445422787,0.0329,27257.0,27256.0,4.3119508]
[1693445423031,0.0329,27257.0,27256.0,5.36952422]
[1693445423830,0.0319,27257.0,27256.0,5.36952422]
[1693445424067,0.0339,27257.0,27256.0,5.39352422]
[1693445424499,0.0339,27257.0,27256.0,5.56945543]
[1693445425441,0.0089,27257.0,27256.0,5.56945543]
[1693445425984,0.0089,27257.0,27256.0,5.49445543]
[1693445426832,0.0089,27257.0,27256.0,4.43688201]
[1693445427560,0.0089,27257.0,27256.0,4.2609508]
[1693445428280,0.0089,27257.0,27256.0,3.69522837]
[1693445429859,0.0089,27257.0,27256.0,3.32914926]
[1693445431115,0.0089,27257.0,27256.0,3.41691497]
[1693445435503,0.003,27257.0,27256.0,3.41691497]
[1693445450514,0.003,27257.0,27256.0,3.54885871]
[1693445452625,0.003,27257.0,27256.0,3.98265464]
[1693445453663,0.003,27257.0,27256.0,3.89488893]
[1693445457558,0.003,27257.0,27256.0,4.95252322]
[1693445459494,0.003,27257.0,27256.0,5.12845443]
[1693445462496,0.003,27257.0,27256.0,4.99651069]
[1693445467441,0.003,27257.0,27256.0,5.21639241]
[1693445468562,0.003,27257.0,27256.0,5.40484441]
[1693445469489,0.003,27257.0,27256.0,4.34721012]
[1693445471500,0.003,27257.0,27256.0,4.17127891]
[1693445479099,0.003,27257.0,27256.0,4.3924763]
[1693445482710,0.003,27257.0,27256.0,4.3174763]
[1693445489716,0.003,27257.0,27256.0,4.53713429]
[1693445491990,0.003,27257.0,27256.0,4.53708205]
[1693445494565,0.003,27257.0,27256.0,4.53711944]
[1693445503084,0.003,27257.0,27256.0,4.17104033]
[1693445510925,0.003,27257.0,27256.0,4.15104033]
[1693445511141,0.003,27257.0,27256.0,4.17104033]
[1693445511475,0.003,27257.0,27256.0,3.39336327]
[1693445511850,0.003,27257.0,27256.0,3.37336327]
[1693445512232,0.003,27257.0,27256.0,2.77141023]
[1693445512454,0.42901331,27257.0,27256.0,0.26246926]
[1693445512830,1.16276931,27257.0,27256.0,0.26246926]
[1693445513031,1.89652531,27257.0,27256.0,0.26246926]
[1693445513628,1.89652531,27257.0,27256.0,0.22146926]
[1693445513629,1.89352531,27257.0,27256.0,0.22146926]
[1693445513867,1.87352531,27257.0,27256.0,0.22146926]
[1693445514075,1.89952531,27257.0,27256.0,0.22446926]
[1693445514254,1.89952531,27257.0,27256.0,0.22146926]
[1693445514255,1.13976931,27257.0,27256.0,0.22146926]
[1693445514464,1.16576931,27257.0,27256.0,0.22446926]
[1693445515283,0.895756,27257.0,27256.0,0.22446926]
[1693445515419,1.19003747,27257.0,27256.0,0.22446926]
[1693445515624,1.15003747,27257.0,27256.0,0.22446926]
[1693445515989,0.854756,27257.0,27256.0,0.22446926]
[1693445516196,0.854756,27257.0,27256.0,0.22746926]
[1693445516197,0.889756,27257.0,27256.0,0.22746926]
[1693445516428,1.683512,27257.0,27256.0,0.22746926]
[1693445516604,1.96990782,27257.0,27256.0,0.22746926]
[1693445516776,1.683512,27257.0,27256.0,0.22746926]
[1693445517188,1.92933656,27257.0,27256.0,0.22746926]
[1693445517382,1.683512,27257.0,27256.0,0.22746926]
[1693445517749,1.23797486,27257.0,27256.0,0.22746926]
[1693445519470,1.23797486,27257.0,27256.0,0.23130326]
[1693445526068,1.16297486,27257.0,27256.0,0.23130326]
[1693445526238,1.23797486,27257.0,27256.0,0.23130326]
[1693445531908,1.23797486,27257.0,27256.0,0.23130326]
[1693445532538,1.19797486,27257.0,27256.0,0.23130326]
[1693445536937,1.17797486,27257.0,27256.0,0.23130326]
[1693445541748,0.44421886,27257.0,27256.0,0.23130326]
[1693445547417,2.80334711,27257.0,27256.0,0.23130326]
[1693445547616,3.18954711,27257.0,27256.0,0.23130326]
[1693445547867,3.25123048,27257.0,27256.0,0.23130326]
[1693445548586,3.15454711,27257.0,27256.0,0.22830326]
[1693445548803,3.12854711,27257.0,27256.0,0.22530326]
[1693445549104,3.20254711,27257.0,27256.0,0.23130326]
[1693445549263,3.26431839,27257.0,27256.0,0.22830326]
[1693445549466,3.12854711,27257.0,27256.0,0.22530326]
[1693445549672,3.16554711,27257.0,27256.0,0.22830326]
[1693445549867,3.20254711,27257.0,27256.0,0.23130326]
[1693445550250,3.22254711,27257.0,27256.0,0.23130326]
[1693445551064,3.28434984,27257.0,27256.0,0.23130326]
[1693445551260,3.28434975,27257.0,27256.0,0.23130326]
[1693445551494,3.44031104,27257.0,27256.0,0.23130326]
[1693445552069,3.22254711,27257.0,27256.0,0.23130326]
[1693445553083,3.45914469,27257.0,27256.0,0.23130326]
[1693445553287,3.22254711,27257.0,27256.0,0.23130326]
[1693445553730,3.49441775,27257.0,27256.0,0.23130326]
[1693445555902,3.22254711,27257.0,27256.0,0.23130326]
[1693445556340,3.46648238,27257.0,27256.0,0.23130326]
[1693445561301,0.53507911,27257.0,27256.0,1.69886926]
[1693445561505,0.094,27257.0,27256.0,2.43265226]
[1693445570221,0.42608369,27257.0,27256.0,0.23130326]
[1693445570564,0.42608369,27257.0,27256.0,1.69886926]
[1693445571923,0.169,27257.0,27256.0,1.69886926]
[1693445572141,0.094,27257.0,27256.0,1.69886926]
[1693445572347,0.094,27257.0,27256.0,2.43265226]
[1693445574792,0.094,27257.0,27256.0,2.46170373]
[1693445577339,0.057,27257.0,27256.0,2.45870373]
[1693445577841,0.094,27257.0,27256.0,2.46170373]
[1693445578048,0.02,27257.0,27256.0,2.45570373]
[1693445578352,0.068,27257.0,27256.0,2.46070373]
[1693445583225,0.068,27257.0,27256.0,2.42768647]
[1693445583428,0.068,27257.0,27256.0,2.45509863]
[1693445586323,0.068,27257.0,27256.0,2.42604716]
[1693445587128,0.048,27257.0,27256.0,2.42604716]
[1693445589509,0.048,27257.0,27256.0,2.88001765]
[1693445735725,0.0219,27258.0,27257.0,2.34979679]
[1693445742308,0.0219,27258.0,27257.0,2.34976055]
[1693445751747,0.0219,27258.0,27257.0,2.33879792]
[1693445752161,0.0209,27258.0,27257.0,2.33879792]
[1693445757495,0.0209,27258.0,27257.0,2.33883087]
[1693445759243,0.0209,27258.0,27257.0,2.33883087]
[1693445763733,0.0209,27258.0,27257.0,1.8921332]
[1693445763945,0.24669767,27258.0,27257.0,1.6121332]
[1693445764712,0.24369767,27258.0,27257.0,1.5751332]
[1693445764924,0.24569767,27258.0,27257.0,1.6031332]
[1693445765290,0.24569767,27258.0,27257.0,1.9031332]
[1693445765493,0.24069767,27258.0,27257.0,1.8381332]
[1693445765729,0.24269767,27258.0,27257.0,1.8611332]
[1693445766137,0.24169767,27258.0,27257.0,1.8521332]
[1693445766356,0.24269767,27258.0,27257.0,1.8611332]
[1693445767726,0.24269767,27258.0,27257.0,2.0809018]
[1693445769458,0.24269767,27258.0,27257.0,2.0609018]
[1693445773394,0.0169,27258.0,27257.0,2.0609018]
[1693445778743,0.0169,27258.0,27257.0,2.23662405]
[1693445781150,0.27031619,27258.0,27257.0,2.23662405]
[1693445781669,0.27031619,27258.0,27257.0,1.09120052]
[1693445781914,0.0169,27258.0,27257.0,0.91547827]
[1693445782114,0.0169,27258.0,27257.0,1.09120052]
[1693445784814,0.0169,27258.0,27257.0,0.91547827]
[1693445785699,0.0169,27258.0,27257.0,1.97304861]
[1693445785837,0.0169,27258.0,27257.0,0.91547827]
[1693445786468,0.0169,27258.0,27257.0,0.91553781]
[1693445786864,0.0169,27258.0,27257.0,1.00338815]
[1693445787113,0.0169,27258.0,27257.0,0.43781237]
[1693445787114,0.30396078,27258.0,27257.0,0.43781237]
[1693445787244,0.30396078,27258.0,27257.0,0.56960814]
[1693445788298,0.30396078,27258.0,27257.0,1.0033884]
[1693445788736,0.30396078,27258.0,27257.0,0.5696082]
[1693445788940,0.30396078,27258.0,27257.0,1.00338587]
[1693445789090,0.30396078,27258.0,27257.0,1.43716296]
[1693445789290,0.30396078,27258.0,27257.0,1.34931222]
[1693445789583,0.30396078,27258.0,27257.0,2.40690265]
[1693445789719,0.30396078,27258.0,27257.0,2.06098069]
[1693445790119,0.30396078,27258.0,27257.0,2.49475868]
[1693445790366,0.30396078,27258.0,27257.0,2.40690886]
[1693445791049,0.0169,27258.0,27257.0,2.40690886]
[1693445795053,0.0169,27258.0,27257.0,2.10690886]
[1693445796307,0.0169,27258.0,27257.0,1.04931312]
[1693445798645,0.29834058,27258.0,27257.0,0.57161986]
[1693445798806,0.37834058,27258.0,27257.0,0.48373936]
[1693445799005,0.37834058,27258.0,27257.0,0.45677767]
[1693445799006,0.31834058,27258.0,27257.0,0.45677767]
[1693445799286,0.37834058,27258.0,27257.0,0.48207074]
[1693445799677,0.37734058,27258.0,27257.0,0.46807074]
[1693445799951,0.38834058,27258.0,27257.0,0.46907074]
[1693445800356,0.37734058,27258.0,27257.0,0.46807074]
[1693445801123,0.37634058,27258.0,27257.0,0.45907074]
[1693445801319,0.41334058,27258.0,27257.0,0.46207074]
[1693445801741,0.1319,27258.0,27257.0,0.46207074]
[1693445801987,0.42579383,27258.0,27257.0,0.46507074]
[1693445802191,0.38879383,27258.0,27257.0,0.46207074]
[1693445802423,0.42579383,27258.0,27257.0,0.46507074]
[1693445808635,0.92117911,27258.0,27257.0,0.46507074]
[1693445808839,1.19264581,27258.0,27257.0,0.46507074]
[1693445809036,1.19264581,27258.0,27257.0,0.03129307]
[1693445810290,1.22665907,27258.0,27257.0,0.03129307]
[1693445811292,0.94117911,27258.0,27257.0,0.03129307]
[1693445811998,1.25857401,27258.0,27257.0,0.03129307]
[1693445812635,0.94117911,27258.0,27257.0,0.03129307]
[1693445813036,1.21577272,27258.0,27257.0,0.03129307]
[1693445813193,0.94117911,27258.0,27257.0,0.03129307]
[1693445814499,1.17365836,27258.0,27257.0,0.03129307]
[1693445816841,0.94117911,27258.0,27257.0,0.03129307]
[1693445817226,1.17462005,27258.0,27257.0,0.03129307]
[1693445817425,0.94117911,27258.0,27257.0,0.03129307]
[1693445818328,1.23668674,27258.0,27257.0,0.03129307]
[1693445819673,0.96117911,27258.0,27257.0,0.03129307]
[1693445820493,1.19773281,27258.0,27257.0,0.03129307]
[1693445820832,0.96117911,27258.0,27257.0,0.03129307]
[1693445821010,1.27037939,27258.0,27257.0,0.03129307]
[1693445821207,0.96117911,27258.0,27257.0,0.03129307]
[1693445825064,1.1919967,27258.0,27257.0,0.03129307]
[1693445832220,0.96117911,27258.0,27257.0,0.03129307]
[1693445832821,1.25765106,27258.0,27257.0,0.03129307]
[1693445833909,0.96117911,27258.0,27257.0,0.03129307]
[1693445834120,1.27081315,27258.0,27257.0,0.03129307]
[1693445834316,0.96117911,27258.0,27257.0,0.03129307]
[1693445834492,1.271817,27258.0,27257.0,0.03129307]
[1693445835885,0.96117911,27258.0,27257.0,0.03129307]
[1693445837049,1.26092674,27258.0,27257.0,0.03129307]
[1693445837832,0.96117911,27258.0,27257.0,0.03129307]
[1693445838264,1.21491914,27258.0,27257.0,0.03129307]
[1693445838489,0.96117911,27258.0,27257.0,0.03129307]
[1693445839569,1.23143277,27258.0,27257.0,0.03129307]
[1693445840289,0.96117911,27258.0,27257.0,0.03129307]
[1693445840418,1.21594661,27258.0,27257.0,0.03129307]
[1693445841438,0.96117911,27258.0,27257.0,0.03129307]
[1693445841634,1.23920322,27258.0,27257.0,0.03129307]
[1693445841772,0.96117911,27258.0,27257.0,0.03129307]
[1693445842514,1.1914705,27258.0,27257.0,0.03129307]
[1693445845538,1.1714705,27258.0,27257.0,0.03129307]
[1693445845873,0.41919139,27258.0,27257.0,0.03129307]
[1693445848254,0.1889,27258.0,27257.0,0.03129307]
[1693445862987,0.0889,27258.0,27257.0,0.03129307]
[1693445863189,0.0889,27258.0,27257.0,0.11917357]
[1693445863419,0.0889,27258.0,27257.0,0.20701532]
[1693445863641,0.0889,27258.0,27257.0,0.57309443]
[1693445863926,0.0889,27258.0,27257.0,1.00687283]
[1693445864306,0.0519,27258.0,27257.0,1.00387283]
[1693445864540,0.0889,27258.0,27257.0,1.00687283]
[1693445864912,0.0519,27258.0,27257.0,1.00387283]
[1693445865119,0.0889,27258.0,27257.0,1.00687283]
[1693445865532,0.0519,27258.0,27257.0,1.13569168]
[1693445865704,0.0169,27258.0,27257.0,1.15469168]
[1693445866210,0.0179,27258.0,27257.0,1.16869168]
[1693445866757,0.0169,27258.0,27257.0,1.15469168]
[1693445867284,0.0189,27258.0,27257.0,1.18169168]
[1693445867435,0.0189,27258.0,27257.0,1.00596943]
[1693445870644,0.0189,27258.0,27257.0,0.66002169]
[1693445872003,0.0189,27258.0,27257.0,1.02596018]
[1693445872277,0.0189,27258.0,27257.0,1.58963218]
[1693445872690,0.0189,27258.0,27257.0,1.36986358]
[1693445874507,0.0189,27258.0,27257.0,1.50153395]
[1693445874730,0.0189,27258.0,27257.0,1.3258117]
[1693445875376,0.0189,27258.0,27257.0,1.41359933]
[1693445875591,0.0189,27258.0,27257.0,0.97983107]
[1693445875798,0.0189,27258.0,27257.0,1.41359694]
[1693445876244,0.0189,27258.0,27257.0,0.9798257]
[1693445876885,0.0189,27258.0,27257.0,1.41358978]
[1693445877467,0.0189,27258.0,27257.0,1.32580663]
[1693445881328,0.0189,27258.0,27257.0,1.50152888]
[1693445882623,0.0189,27258.0,27257.0,1.32580663]
[1693445883264,0.0189,27258.0,27257.0,0.97979471]
[1693445885552,0.0189,27258.0,27257.0,1.41355121]
[1693445886120,0.0189,27258.0,27257.0,1.41355227]
[1693445886321,0.0189,27258.0,27257.0,0.97979471]
[1693445887546,0.0189,27258.0,27257.0,1.4135566]
[1693445888157,0.0189,27258.0,27257.0,1.32580444]
[1693445890086,0.0189,27258.0,27257.0,1.36985632]
[1693445890559,0.0189,27258.0,27257.0,1.41390267]
[1693445891965,0.0189,27258.0,27257.0,1.58943693]
[1693445892182,0.0189,27258.0,27257.0,1.36966833]
[1693445893405,0.0189,27258.0,27257.0,1.58943693]
[1693445895843,0.0189,27258.0,27257.0,1.41390267]
[1693445896274,0.0189,27258.0,27257.0,1.58945266]
[1693445896408,0.0189,27258.0,27257.0,1.41390267]
[1693445896753,0.0189,27258.0,27257.0,1.58945908]
[1693445897173,0.0189,27258.0,27257.0,1.04755522]
[1693445897174,0.31367936,27258.0,27257.0,1.04755522]
[1693445897374,0.31367936,27258.0,27257.0,0.93975992]
[1693445897584,0.31367936,27258.0,27257.0,0.29377859]
[1693445897782,0.31367936,27258.0,27257.0,0.1620947]
[1693445898742,0.0189,27258.0,27257.0,0.1620947]
[1693445898946,0.0189,27258.0,27257.0,0.38153337]
[1693445899149,0.0189,27258.0,27257.0,0.81530336]
[1693445901361,0.0189,27258.0,27257.0,3.75032736]
[1693445904462,0.0189,27258.0,27257.0,3.61864347]
[1693445907402,0.0189,27258.0,27257.0,3.66285566]
[1693445907604,0.0189,27258.0,27257.0,4.2046844]
[1693445907806,0.0189,27258.0,27257.0,4.02893477]
[1693445908649,0.0189,27258.0,27257.0,3.80916617]
[1693445912816,0.0189,27258.0,27257.0,3.80914506]
[1693445913553,0.0189,27258.0,27257.0,4.0288905]
[1693445915908,0.0189,27258.0,27257.0,1.0938665]
[1693445916143,0.0189,27258.0,27257.0,3.2951345]
[1693445916355,0.0189,27258.0,27257.0,4.0288905]
[1693445917172,0.0189,27258.0,27257.0,3.80914506]
[1693445923704,0.0189,27258.0,27257.0,4.02895072]
[1693445923920,0.0189,27258.0,27257.0,4.20480947]
[1693445924293,0.0189,27258.0,27257.0,5.08652809]
[1693445924724,0.0189,27258.0,27257.0,5.26237869]
[1693445926080,0.0189,27258.0,27257.0,5.08652809]
[1693445931786,0.0189,27258.0,27257.0,4.86672243]
[1693445933304,0.0189,27258.0,27257.0,5.08651327]
[1693445933466,0.0189,27258.0,27257.0,4.86672243]
[1693445934837,0.0189,27258.0,27257.0,5.08651317]
[1693445935022,0.0189,27258.0,27257.0,4.86672243]
[1693445935647,0.0189,27258.0,27257.0,4.90672243]
[1693445935874,0.0189,27258.0,27257.0,5.27290243]
[1693445935988,0.0189,27258.0,27257.0,5.26906243]
[1693445936193,0.0189,27258.0,27257.0,5.27098243]
[1693445936435,0.0189,27258.0,27257.0,5.27158243]
[1693445936635,0.0189,27258.0,27257.0,5.26984243]
[1693445936861,0.0189,27258.0,27257.0,5.20672243]
[1693445937457,0.0189,27258.0,27257.0,5.27020243]
[1693445937654,0.0189,27258.0,27257.0,5.27206243]
[1693445937855,0.0189,27258.0,27257.0,5.27200243]
[1693445938354,0.0189,27258.0,27257.0,5.27068243]
[1693445938566,0.0189,27258.0,27257.0,5.27182243]
[1693445938766,0.0189,27258.0,27257.0,5.27086243]
[1693445939019,0.0189,27258.0,27257.0,5.47040836]
[1693445939604,0.0189,27258.0,27257.0,5.20672243]
[1693445940151,0.0189,27258.0,27257.0,5.47032595]
[1693445940356,0.0189,27258.0,27257.0,5.47032592]
[1693445940557,0.0189,27258.0,27257.0,5.20672243]
[1693445941328,0.0189,27258.0,27257.0,5.47032428]
[1693445943810,0.0208,27260.0,27259.0,0.02]
[1693445944011,0.0208,27260.0,27259.0,5.54591536]
[1693445944233,0.0208,27260.0,27259.0,5.84591536]
[1693445944379,0.0208,27260.0,27259.0,5.87078714]
[1693445944839,0.0208,27260.0,27259.0,5.87178714]
[1693445944840,0.0248,27260.0,27259.0,5.87178714]
[1693445945462,0.0248,27260.0,27259.0,6.09139423]
[1693445947363,0.0248,27260.0,27259.0,6.07139423]
[1693445947564,0.0248,27260.0,27259.0,6.09139423]
[1693445949145,0.0248,27260.0,27259.0,6.26703391]
[1693445949345,0.0248,27260.0,27259.0,5.53333191]
[1693445949544,0.0248,27260.0,27259.0,5.31372482]
[1693445951885,0.0248,27260.0,27259.0,5.49682482]
[1693445952343,0.0248,27260.0,27259.0,4.39537905]
[1693445952902,0.0248,27260.0,27259.0,4.02929994]
[1693445953085,0.0248,27260.0,27259.0,5.17671327]
[1693445957984,0.0248,27260.0,27259.0,2.24190527]
[1693445958203,0.0248,27260.0,27259.0,5.17671327]
[1693445962395,0.0248,27260.0,27259.0,5.39632036]
[1693445963665,0.0208,27260.0,27259.0,5.39632036]
[1693445963984,0.0248,27260.0,27259.0,5.39532036]
[1693445964279,0.0208,27260.0,27259.0,5.39632036]
[1693445964642,0.0228,27260.0,27259.0,5.41732036]
[1693445964841,0.0228,27260.0,27259.0,5.44618056]
[1693445965049,0.0248,27260.0,27259.0,5.47318056]
[1693445968100,0.0248,27260.0,27259.0,5.29754088]
[1693445971030,0.0248,27260.0,27259.0,5.59754088]
[1693445974175,0.0248,27260.0,27259.0,5.37793379]
[1693445977479,0.0248,27260.0,27259.0,4.32046719]
[1693445982843,0.0248,27260.0,27259.0,4.7159645]
[1693445983044,0.0248,27260.0,27259.0,4.54018346]
[1693445983440,0.0248,27260.0,27259.0,4.51132326]
[1693445983623,0.0248,27260.0,27259.0,4.46738826]
[1693445984037,0.0248,27260.0,27259.0,4.68710453]
[1693445985309,0.0248,27260.0,27259.0,4.46738826]
[1693445985719,0.0248,27260.0,27259.0,4.68710453]
[1693445988764,0.0248,27260.0,27259.0,4.51132326]
[1693445989237,0.0248,27260.0,27259.0,5.24502526]
[1693445995623,0.0248,27260.0,27259.0,1.57649146]
[1693445995825,0.0248,27260.0,27259.0,4.51130144]
[1693445996397,0.0248,27260.0,27259.0,5.24500344]
[1693445997916,0.0248,27260.0,27259.0,5.02530899]
[1693446000910,0.0248,27260.0,27259.0,5.055303]
[1693446005072,0.0248,27260.0,27259.0,5.2750069]
[1693446006712,0.0248,27260.0,27259.0,5.075303]
[1693446016076,0.0248,27260.0,27259.0,5.0752597]
[1693446018068,0.0248,27260.0,27259.0,4.56123908]
[1693446019361,0.0248,27260.0,27259.0,4.56124333]
[1693446024827,0.0248,27260.0,27259.0,5.0752597]
[1693446033648,0.0248,27260.0,27259.0,5.1576597]
[1693446033852,0.0248,27260.0,27259.0,5.19434358]
[1693446034055,0.0248,27260.0,27259.0,5.19374358]
[1693446034258,0.0248,27260.0,27259.0,5.19470358]
[1693446034455,0.0248,27260.0,27259.0,5.19494358]
[1693446034799,0.0248,27260.0,27259.0,5.19368358]
[1693446035003,0.0248,27260.0,27259.0,5.13200358]
[1693446037320,0.0248,27260.0,27259.0,2.19719558]
[1693446037550,0.0248,27260.0,27259.0,4.39830158]
[1693446038288,0.0248,27260.0,27259.0,5.13200358]
[1693446041117,0.0248,27260.0,27259.0,5.0952597]
[1693446061402,0.0248,27260.0,27259.0,5.13200358]
[1693446062517,0.0248,27260.0,27259.0,5.0952597]
[1693446066481,0.0248,27260.0,27259.0,5.35886029]
[1693446067328,0.0248,27260.0,27259.0,5.0952597]
[1693446067554,0.0248,27260.0,27259.0,5.35886029]
[1693446076602,0.0248,27260.0,27259.0,4.62515829]
[1693446077198,0.0248,27260.0,27259.0,5.35886029]
[1693446085129,0.0248,27260.0,27259.0,5.0952597]
[1693446087300,0.0248,27260.0,27259.0,5.35886029]
[1693446087670,0.0248,27260.0,27259.0,5.35901422]
[1693446090531,0.0248,27260.0,27259.0,4.62531222]
[1693446090994,0.0248,27260.0,27259.0,4.36154948]
[1693446092471,0.0248,27260.0,27259.0,5.09525148]
[1693446103909,0.0248,27260.0,27259.0,5.17065148]
[1693446114083,0.0248,27260.0,27259.0,5.43441422]
[1693446114409,0.0248,27260.0,27259.0,5.33441422]
[1693446114611,0.0248,27260.0,27259.0,5.35921813]
[1693446115519,0.0248,27260.0,27259.0,4.62551613]
[1693446116302,0.0248,27260.0,27259.0,5.35921813]
[1693446127166,0.0248,27260.0,27259.0,5.09545539]
[1693446128933,0.0248,27260.0,27259.0,4.32175339]
[1693446128934,0.31038881,27260.0,27259.0,4.32175339]
[1693446129152,0.31038881,27260.0,27259.0,4.45613626]
[1693446129372,0.31038881,27260.0,27259.0,4.53153626]
[1693446130208,0.31038881,27260.0,27259.0,4.70734322]
[1693446130427,0.0248,27260.0,27259.0,4.53153626]
[1693446130993,0.0248,27260.0,27259.0,4.70732541]
[1693446131416,0.0248,27260.0,27259.0,4.53153626]
[1693446132218,0.0248,27260.0,27259.0,4.70730859]
[1693446132647,0.0248,27260.0,27259.0,4.53153626]
[1693446142974,0.0248,27260.0,27259.0,4.70727141]
[1693446143758,0.0248,27260.0,27259.0,4.53153626]
[1693446145610,0.0248,27260.0,27259.0,4.70725961]
[1693446147015,0.0248,27260.0,27259.0,4.53153626]
[1693446147217,0.0248,27260.0,27259.0,4.70725034]
[1693446150068,0.0248,27260.0,27259.0,4.53153626]
[1693446151460,0.0248,27260.0,27259.0,4.70724239]
[1693446155709,0.0248,27260.0,27259.0,3.97354039]
[1693446156427,0.0248,27260.0,27259.0,4.70724239]
[1693446161202,0.0248,27260.0,27259.0,4.48746551]
[1693446173009,0.0248,27260.0,27259.0,4.70724239]
[1693446174833,0.0248,27260.0,27259.0,4.53153626]
[1693446185882,0.0248,27260.0,27259.0,4.31175938]
[1693446187209,0.0248,27260.0,27259.0,4.53153888]
[1693446191016,0.0248,27260.0,27259.0,4.31175938]
[1693446194158,0.0248,27260.0,27259.0,4.53154493]
[1693446195555,0.0248,27260.0,27259.0,2.33043893]
[1693446195903,0.0248,27260.0,27259.0,3.79784293]
[1693446196244,0.0248,27260.0,27259.0,4.53154493]
[1693446200599,0.2886739,27260.0,27259.0,4.53154493]
[1693446201909,0.2886739,27260.0,27259.0,4.14546582]
[1693446202115,0.2886739,27260.0,27259.0,2.55872795]